[Event "Asian Amateur-ch Open 2022"]
[Site "Muscat"]
[Date "2022.10.02"]
[Round "2.27"]
[White "Shaurya Dinesh Sawlani"]
[Black "Velavaa Ragavesh"]
[Result "0-1"]
[ECO "B52"]
[WhiteElo "1448"]
[BlackElo "1698"]
[Annotator "NA RC COMBH"]
[PlyCount "86"]
[EventDate "2022.09.29"]
[EventType "swiss"]
[SourceTitle "playchess.com"]
[Source "ChessBase"]
[SourceQuality "1"]
[TimeControl "5400+30"]

1. e4 {[%emt 0:00:05]} c5 {[%emt 0:00:22]} 2. Nf3 {[%emt 0:00:16]} d6 {[%emt 0:00:35]} 3. Bb5+ {[%emt 0:00:19]} Bd7 {[%emt 0:00:23]} 4. Bxd7+ {[%emt 0:01:27]} Nxd7 {[%emt 0:00:53]} 5. d3 {[%emt 0:00:59]} g6 {[%emt 0:01:35]} 6. O-O {[%emt 0:00:21]} Bg7 {[%emt 0:00:12]} 7. Nc3 {[%emt 0:01:15]} Ngf6 {[%emt 0:00:41]} 8. Re1 {[%emt 0:02:14]} O-O {[%emt 0:02:13]} 9. h3 {[%emt 0:03:55]} h6 {[%emt 1:28:06]} 10. Be3 {[%emt 0:04:07]} e5 {[%emt 0:00:00]} 11. Nd2 {[%emt 0:25:47]} Nb6 {[%emt 0:00:00]} 12. Ne2 {[%emt 0:07:56]} Ne8 {[%emt 0:00:00]} 13. g4 {[%emt 0:06:57]} Qh4 {[%emt 0:00:00]} 14. Kg2 {[%emt 0:02:03]} f5 {[%emt 0:00:00]} 15. exf5 {[%emt 0:04:40]} gxf5 {[%emt 0:00:00]} 16. gxf5 {[%emt 0:00:16]} Rxf5 {[%emt 0:00:00]} 17. Ng3 {[%emt 0:01:12]} Rf7 {[%emt 0:00:00]} 18. Qg4 {[%emt 0:03:54]} Qxg4 {[%emt 0:00:00]} 19. hxg4 {[%emt 0:00:20]} Nf6 {[%emt 0:00:00]} 20. f3 {[%emt 0:01:42]} Nfd5 {[%emt 0:00:00]} 21. c4 {[%emt 0:12:46]} Nb4 {[%emt 0:00:00]} 22. Nf5 {[%emt 0:03:39]} Rxf5 {[%emt 0:00:00]} 23. gxf5 {[%emt 0:00:55]} Nc2 {[%emt 0:00:00]} 24. Ne4 {[%emt 0:01:30]} Nxa1 {[%emt 0:00:00]} 25. Rxa1 {[%emt 0:00:11]} d5 {[%emt 0:00:00]} 26. Nxc5 {[%emt 0:03:56]} dxc4 {[%emt 0:00:00]} 27. Kf2 {[%emt 0:01:31]} Kf7 {[%emt 0:00:00]} 28. Ne6 {[%emt 0:02:58]} cxd3 {[%emt 0:00:00]} 29. Bxb6 {[%emt 0:02:14]} axb6 {[%emt 0:00:00]} 30. Ke3 {[%emt 0:00:02]} Bf8 {[%emt 0:00:00]} 31. Kxd3 {[%emt 0:01:20]} Kf6 {[%emt 0:00:00]} 32. Ke4 {[%emt 0:00:20]} Ra4+ {[%emt 0:00:00]} 33. Kd5 {[%emt 0:01:40]} Be7 {[%emt 0:00:00]} 34. Rg1 {[%emt 0:00:22]} Rxa2 {[%emt 0:02:14]} 35. Ng7 {[%emt 0:03:05]} Ra5+ {[%emt 0:01:39]} 36. Ke4 {[%emt 0:00:21]} Ra4+ {[%emt 0:00:01]} 37. Kd3 {[%emt 0:01:27]} Rh4 {[%emt 0:02:56]} 38. Rg6+ {[%emt 0:00:51]} Kf7 {[%emt 0:00:21]} 39. Ne6 {[%emt 0:00:09]} Bf6 {[%emt 0:00:07]} 40. Nc7 {[%emt 0:00:40]} Rf4 {[%emt 0:00:52]} 41. Nd5 {[%emt 0:00:39]} Rd4+ {[%emt 0:00:02]} 42. Ke3 {[%emt 0:00:09]} Rxd5 {[%emt 0:00:01]} 43. Rxh6 {[%emt 0:00:06]} Bg5+ {[%emt 0:00:04]} 0-1

[Event "Asian Amateur-ch Open 2022"]
[Site "Muscat"]
[Date "2022.10.02"]
[Round "2.28"]
[White "Al Amri, Mohammed A"]
[Black "Al Mamari Mohammed Salim"]
[Result "1-0"]
[ECO "B51"]
[WhiteElo "1693"]
[BlackElo "1685"]
[Annotator "NA RC COMBH"]
[PlyCount "97"]
[EventDate "2022.09.29"]
[EventType "swiss"]
[SourceTitle "playchess.com"]
[Source "ChessBase"]
[SourceQuality "1"]
[TimeControl "5400+30"]

1. e4 {[%emt 0:00:04]} c5 {[%emt 0:00:17]} 2. Nf3 {[%emt 0:00:03]} d6 {[%emt 0:00:25]} 3. Nc3 {[%emt 0:00:41]} Nf6 {[%emt 0:01:03]} 4. Bb5+ {[%emt 0:00:07]} Nbd7 {[%emt 0:02:31]} 5. O-O {[%emt 0:00:31]} a6 {[%emt 0:03:18]} 6. Bc4 {[%emt 0:00:24]} b5 {[%emt 0:08:03]} 7. Bd5 {[%emt 0:01:21]} Nxd5 {[%emt 0:00:20]} 8. Nxd5 {[%emt 0:00:18]} e6 {[%emt 0:00:37]} 9. Ne3 {[%emt 0:00:02]} Bb7 {[%emt 0:00:59]} 10. d3 {[%emt 0:00:03]} Be7 {[%emt 0:01:44]} 11. b3 {[%emt 0:01:39]} O-O {[%emt 0:04:33]} 12. Bb2 {[%emt 0:00:11]} Bf6 {[%emt 0:00:51]} 13. c3 {[%emt 0:02:12]} b4 {[%emt 0:07:42]} 14. Qc2 {[%emt 0:01:10]} Bxc3 {[%emt 0:04:27]} 15. Bxc3 {[%emt 0:00:06]} bxc3 {[%emt 0:00:08]} 16. Qxc3 {[%emt 0:00:05]} Rc8 {[%emt 0:07:30]} 17. Rac1 {[%emt 0:00:50]} f5 {[%emt 0:16:55]} 18. Qc2 {[%emt 0:03:48]} fxe4 {[%emt 0:10:19]} 19. dxe4 {[%emt 0:00:02]} Rf4 {[%emt 0:02:25]} 20. Nd2 {[%emt 0:02:13]} Ne5 {[%emt 0:02:23]} 21. f3 {[%emt 0:02:07]} a5 {[%emt 0:01:52]} 22. Ndc4 {[%emt 0:00:42]} Ba6 {[%emt 0:02:19]} 23. Nxe5 {[%emt 0:00:53]} Bxf1 {[%emt 0:01:45]} 24. N5g4 {[%emt 0:01:02]} Ba6 {[%emt 0:00:55]} 25. Qd2 {[%emt 0:00:22]} h5 {[%emt 0:02:09]} 26. Nf2 {[%emt 0:00:27]} Rf7 {[%emt 0:04:39]} 27. h3 {[%emt 0:00:48]} Rd7 {[%emt 0:00:28]} 28. Kh2 {[%emt 0:00:41]} d5 {[%emt 0:02:59]} 29. exd5 {[%emt 0:04:03]} exd5 {[%emt 0:00:15]} 30. Rd1 {[%emt 0:02:55]} d4 {[%emt 0:01:33]} 31. Nc4 {[%emt 0:01:11]} Bxc4 {[%emt 0:01:10]} 32. bxc4 {[%emt 0:00:10]} Rb7 {[%emt 0:02:29]} 33. Ne4 {[%emt 0:01:37]} Rb4 {[%emt 0:01:06]} 34. Qc2 {[%emt 0:01:46]} Qc7+ {[%emt 0:01:19]} 35. Kg1 {[%emt 0:01:07]} Qb6 {[%emt 0:01:30]} 36. Nd2 {[%emt 0:00:34]} Re8 {[%emt 0:00:50]} 37. Ne4 {[%emt 0:04:05]} Rd8 {[%emt 0:00:32]} 38. Ng5 {[%emt 0:01:11]} d3 {[%emt 0:01:12]} 39. Rxd3 {[%emt 0:03:06]} Rxd3 {[%emt 0:00:02]} 40. Qxd3 {[%emt 0:00:06]} g6 {[%emt 0:01:39]} 41. Qd5+ {[%emt 0:00:32]} Kg7 {[%emt 0:00:18]} 42. Qd7+ {[%emt 0:00:47]} Kh6 {[%emt 0:03:22]} 43. Nf7+ {[%emt 0:01:26]} Kg7 {[%emt 0:00:31]} 44. Nd6+ {[%emt 0:00:55]} Kh6 {[%emt 0:00:17]} 45. f4 {[%emt 0:04:45]} Rb1+ {[%emt 0:00:33]} 46. Kh2 {[%emt 0:00:16]} Qb2 {[%emt 0:00:45]} 47. Nf7+ {[%emt 0:00:15]} Kg7 {[%emt 0:01:01]} 48. Ng5+ {[%emt 1:00:51]} Kf6 49. Qf7# {[%emt 0:00:30]} 1-0

[Event "Asian Amateur-ch Open 2022"]
[Site "Muscat"]
[Date "2022.10.02"]
[Round "2.29"]
[White "Al Hinai, Qusay"]
[Black "Ibnu, Iwan Schani"]
[Result "1/2-1/2"]
[ECO "E33"]
[WhiteElo "1201"]
[BlackElo "1689"]
[Annotator "NA RC COMBH"]
[PlyCount "125"]
[EventDate "2022.09.29"]
[EventType "swiss"]
[SourceTitle "playchess.com"]
[Source "ChessBase"]
[SourceQuality "1"]
[TimeControl "5400+30"]

1. d4 {[%emt 0:00:07]} Nf6 {[%emt 0:00:07]} 2. c4 {[%emt 0:00:07]} e6 {[%emt 0:00:26]} 3. Nc3 {[%emt 0:00:19]} Bb4 {[%emt 0:00:26]} 4. Qc2 {[%emt 0:01:01]} Nc6 {[%emt 0:01:56]} 5. Nf3 {[%emt 0:01:46]} O-O {[%emt 0:01:38]} 6. e4 {[%emt 0:01:26]} d6 {[%emt 0:01:19]} 7. e5 {[%emt 0:03:52]} dxe5 {[%emt 0:02:19]} 8. dxe5 {[%emt 0:00:27]} Ng4 {[%emt 0:01:06]} 9. a3 {[%emt 0:11:00]} Bxc3+ {[%emt 0:01:52]} 10. Qxc3 {[%emt 0:00:13]} f6 {[%emt 0:00:49]} 11. exf6 {[%emt 0:06:29]} Qxf6 {[%emt 0:00:02]} 12. Qxf6 {[%emt 0:04:55]} Nxf6 {[%emt 0:09:00]} 13. Be2 {[%emt 0:11:48]} e5 {[%emt 0:00:26]} 14. Be3 {[%emt 0:02:04]} a5 {[%emt 0:01:24]} 15. O-O {[%emt 0:01:26]} Bf5 {[%emt 1:15:10]} 16. h3 {[%emt 0:03:10]} Rad8 {[%emt 0:00:00]} 17. Rfd1 {[%emt 0:02:50]} Bc2 {[%emt 0:00:00]} 18. Rxd8 {[%emt 0:04:08]} Rxd8 {[%emt 0:00:00]} 19. Rc1 {[%emt 0:01:31]} Bb3 {[%emt 0:00:00]} 20. Nd2 {[%emt 0:00:47]} a4 {[%emt 0:00:00]} 21. Nxb3 {[%emt 0:00:02]} axb3 {[%emt 0:00:00]} 22. Kf1 {[%emt 0:05:06]} Ne4 {[%emt 0:00:00]} 23. Ke1 {[%emt 0:03:08]} Nd4 {[%emt 0:00:00]} 24. Bxd4 {[%emt 0:03:35]} exd4 {[%emt 0:00:00]} 25. Bf3 {[%emt 0:05:38]} Nc5 {[%emt 0:00:00]} 26. Kd2 {[%emt 0:02:32]} Re8 {[%emt 0:00:00]} 27. Ra1 {[%emt 0:04:38]} Kf7 {[%emt 0:00:00]} 28. a4 {[%emt 0:01:06]} Kf6 {[%emt 0:00:00]} 29. Ra3 {[%emt 0:01:08]} c6 {[%emt 0:00:00]} 30. a5 {[%emt 0:01:17]} Re5 {[%emt 0:00:00]} 31. a6 {[%emt 0:01:33]} bxa6 {[%emt 0:00:00]} 32. Bxc6 {[%emt 0:00:11]} Re6 {[%emt 0:00:00]} 33. Bf3 {[%emt 0:01:10]} Re5 {[%emt 0:00:00]} 34. Ra1 {[%emt 0:02:42]} h5 {[%emt 0:00:00]} 35. Rf1 {[%emt 0:06:26]} h4 {[%emt 0:00:00]} 36. g4 {[%emt 0:04:13]} Kg5 {[%emt 0:00:17]} 37. Bd5 {[%emt 0:01:35]} Kf4 {[%emt 0:00:28]} 38. Ra1 {[%emt 0:01:34]} d3 {[%emt 0:03:56]} 39. Re1 {[%emt 0:00:37]} Rxe1 {[%emt 0:03:12]} 40. Kxe1 {[%emt 0:00:01]} a5 {[%emt 0:01:31]} 41. Kd2 {[%emt 0:00:59]} g5 {[%emt 0:00:31]} 42. Kc3 {[%emt 0:00:40]} a4 {[%emt 0:00:23]} 43. Bc6 {[%emt 0:00:37]} Ke5 {[%emt 0:01:37]} 44. Ba8 {[%emt 0:01:44]} Ne6 {[%emt 0:01:13]} 45. Kxd3 {[%emt 0:00:43]} Nf4+ {[%emt 0:00:03]} 46. Kc3 {[%emt 0:00:19]} Nxh3 {[%emt 0:00:07]} 47. Kb4 {[%emt 0:00:03]} Nxf2 {[%emt 0:00:53]} 48. Kxa4 {[%emt 0:00:33]} Nxg4 {[%emt 0:00:24]} 49. Kb5 {[%emt 0:00:40]} Kd6 {[%emt 0:00:51]} 50. Kb6 {[%emt 0:01:34]} Ne5 {[%emt 0:02:04]} 51. c5+ Ke6 {[%emt 0:00:00]} 52. c6 {[%emt 0:00:00]} Nc4+ {[%emt 0:00:00]} 53. Kb7 {[%emt 0:00:00]} Nd6+ {[%emt 0:00:00]} 54. Kb6 {[%emt 0:00:00]} g4 {[%emt 0:00:00]} 55. c7 {[%emt 0:00:02]} h3 {[%emt 0:00:00]} 56. Bb7 {[%emt 0:01:04]} g3 {[%emt 0:00:03]} 57. c8=Q+ {[%emt 0:00:15]} Nxc8+ {[%emt 0:00:38]} 58. Bxc8+ {[%emt 0:00:01]} Kd5 {[%emt 0:00:20]} 59. Bxh3 {[%emt 0:00:01]} Kd4 {[%emt 0:00:15]} 60. Kb5 {[%emt 0:00:08]} Kd3 {[%emt 0:00:14]} 61. Kb4 {[%emt 0:00:00]} Kc2 {[%emt 0:00:03]} 62. Bg2 {[%emt 0:00:11]} Kxb2 {[%emt 0:00:04]} 63. Bd5 {[%emt 0:04:48]} 1/2-1/2

[Event "Asian Amateur-ch Open 2022"]
[Site "Muscat"]
[Date "2022.10.02"]
[Round "2.30"]
[White "kloub.M"]
[Black "Humaidan Mohamed, Alzaabi"]
[Result "0-1"]
[ECO "E67"]
[WhiteElo "1687"]
[BlackElo "1393"]
[Annotator "NA RC COMBH"]
[PlyCount "66"]
[EventDate "2022.09.29"]
[EventType "swiss"]
[SourceTitle "playchess.com"]
[Source "ChessBase"]
[SourceQuality "1"]
[TimeControl "5400+30"]

1. d4 {[%emt 0:00:03]} Nf6 {[%emt 0:00:22]} 2. c4 {[%emt 0:00:12]} g6 {[%emt 0:00:08]} 3. Nf3 {[%emt 0:00:17]} Bg7 {[%emt 0:00:02]} 4. g3 {[%emt 0:00:15]} O-O {[%emt 0:00:37]} 5. Bg2 {[%emt 0:00:05]} d6 {[%emt 0:00:20]} 6. Nc3 {[%emt 0:00:34]} Nbd7 {[%emt 0:01:55]} 7. O-O {[%emt 0:04:29]} e5 {[%emt 0:09:48]} 8. dxe5 {[%emt 0:00:43]} dxe5 {[%emt 0:00:06]} 9. e4 {[%emt 0:00:29]} Qe7 {[%emt 0:10:14]} 10. Qc2 {[%emt 0:17:49]} c6 {[%emt 0:13:04]} 11. Rd1 {[%emt 0:04:36]} Ne8 {[%emt 0:13:53]} 12. Bg5 {[%emt 0:11:24]} f6 {[%emt 0:05:53]} 13. Be3 {[%emt 0:03:05]} Nc5 {[%emt 0:06:35]} 14. Bxc5 {[%emt 0:11:50]} Qxc5 {[%emt 0:00:03]} 15. Na4 {[%emt 0:14:24]} Qe7 {[%emt 0:02:44]} 16. Qd2 {[%emt 0:01:42]} Be6 {[%emt 0:03:00]} 17. b3 {[%emt 0:04:31]} f5 {[%emt 0:06:22]} 18. Nc3 {[%emt 0:03:33]} f4 {[%emt 0:00:32]} 19. Rac1 {[%emt 0:00:57]} Bg4 {[%emt 0:00:10]} 20. Qe2 {[%emt 0:11:54]} Nc7 {[%emt 0:11:19]} 21. h3 {[%emt 0:00:19]} Bxf3 {[%emt 0:00:23]} 22. Bxf3 {[%emt 0:00:30]} fxg3 {[%emt 0:00:57]} 23. fxg3 {[%emt 0:00:11]} Bh6 {[%emt 0:01:12]} 24. Rb1 {[%emt 0:00:59]} Ne6 {[%emt 0:01:02]} 25. h4 {[%emt 0:01:32]} Nd4 {[%emt 0:00:20]} 26. Rxd4 {[%emt 0:02:40]} exd4 {[%emt 0:01:11]} 27. Nd1 {[%emt 0:00:13]} Qf6 {[%emt 0:01:02]} 28. Bg4 {[%emt 0:00:24]} d3 {[%emt 0:01:51]} 29. Qxd3 {[%emt 0:01:08]} Rad8 {[%emt 0:00:01]} 30. Qe2 {[%emt 0:00:35]} Rd2 {[%emt 0:00:32]} 31. e5 {[%emt 0:02:17]} Qd8 {[%emt 0:00:53]} 32. Qe4 {[%emt 0:01:53]} Qb6+ {[%emt 0:00:15]} 33. Kh1 {[%emt 0:00:48]} Rf1# {[%emt 0:00:06]} 0-1

[Event "Asian Amateur-ch Open 2022"]
[Site "Muscat"]
[Date "2022.10.02"]
[Round "3.1"]
[White "Junaid Sohail"]
[Black "Jaradat, Othman"]
[Result "1-0"]
[ECO "D37"]
[WhiteElo "1981"]
[BlackElo "1751"]
[Annotator "TA"]
[PlyCount "71"]
[EventDate "2022.09.29"]
[EventType "swiss"]
[SourceTitle "playchess.com"]
[Source "ChessBase"]
[SourceQuality "1"]
[TimeControl "5400+30"]

{[%evp 12,71,46,8,43,38,75,38,71,68,62,70,76,72,110,91,124,117,171,166,187,189,189,189,225,227,213,211,238,238,285,275,269,310,748,733,796,787,1398,1429,1209,1044,3215,3199,2977,2434,29994,29991,29991,29992,2437,2404,2182,2056,2438,1892,6591,5984,29986,29987,29995,29990]} 1. d4 {[%emt 0:00:02]} e6 {[%emt 0:00:02]} 2. c4 {[%emt 0:02:59][%cal Bc2c4,Bc4c5][%mdl 32]} d5 {[%emt 0:00:05]} 3. Nf3 {[%emt 0:00:12]} Nf6 {[%emt 0:00:10]} 4. Nc3 {[%emt 0:00:02]} Be7 {[%emt 0:00:18]} 5. Bf4 {[%emt 0:00:02]} O-O {[%emt 0:02:04]} 6. e3 {[%emt 0:00:01]} a6 {[%emt 0:03:56]} 7. c5 {[%emt 0:00:02]} Nbd7 {[%emt 0:04:02] D37: Queen's Gambit Declined: 5 Bf4.} 8. b4 {[%emt 0:03:43]} c6 {[%emt 0:04:44]} 9. a3 {[%emt 0:03:01] White is more active.} Ne4 {[%emt 0:08:46] White is slightly better.} 10. Nxe4 {[%emt 0:01:27]} dxe4 {[%emt 0:00:13]} 11. Nd2 {[%emt 0:05:10][%cal Bf3d2,Bd2c4,Bc4b6][%mdl 32] [#]} f5 $146 {[%emt 0:04:02]} ({Predecessor:} 11... Nf6 12. Qc2 Nd5 13. Qxe4 f5 14. Qc2 Nxf4 15. exf4 Bf6 16. Nf3 Qc7 17. Ne5 Qd8 {1-0 (44) Mayrhuber,F (1861)-Gockner,H Vienna 2012}) 12. Nc4 {[%emt 0:03:05] Prevents a5.} g5 {[%emt 0:03:42]} 13. Be5 {[%emt 0:01:54]} Nxe5 {[%emt 0:06:47]} 14. dxe5 {[%emt 0:00:03]} ({Don't do} 14. Nxe5 Kg7 $14) 14... Qd5 {[%emt 0:03:22]} (14... a5 $16) 15. Qc2 {[%emt 0:00:14]} ({Worse is} 15. Nb6 Qxe5 16. Ra2 (16. Nxa8 $2 {too greedy.} Qc3+ 17. Ke2 f4 $19) 16... Rd8 $11) 15... Qd8 {[%emt 0:05:40]} 16. Nb6 {[%emt 0:00:35]} Rb8 {[%emt 0:00:47]} 17. Bc4 {[%emt 0:00:10]} Re8 {[%emt 0:04:24]} 18. Rd1 {[%emt 0:13:34]} Qc7 {[%emt 0:00:22]} 19. Qc3 {[%emt 0:00:09]} Bf8 {[%emt 0:06:25]} 20. O-O {[%emt 0:00:36][%cal Bh1f1,Bf1d1,Bd1d6][%mdl 32]} Bg7 {[%emt 0:11:36]} 21. Rd6 {[%emt 0:00:02] Rfd1 is the strong threat.} Bf8 {[%emt 0:00:26]} 22. Rfd1 {[%emt 0:01:07][%cal Od6d7] [#] And now Rd7! would win.} Re7 {[%emt 0:10:42] Inhibits Rd7.} (22... Bxd6 23. exd6 Qg7 24. Qxg7+ Kxg7) 23. Rd8 $18 {[%emt 0:03:38]} Kf7 {[%emt 0:02:26]} 24. R1d6 {[%emt 0:03:18]} Bg7 {[%emt 0:00:40]} 25. Qd4 {[%emt 0:01:11]} Bf8 {[%emt 0:01:39]} 26. a4 {[%emt 0:00:58]} Bg7 {[%emt 0:00:58]} 27. Nxc8 {[%emt 0:01:23]} Rxc8 {[%emt 0:00:20]} 28. R8d7 {[%emt 0:00:49]} Qb8 {[%emt 0:01:01]} 29. Bxe6+ {[%emt 0:00:26]} Ke8 {[%emt 0:01:24]} 30. Rxe7+ {[%emt 0:00:07]} Kxe7 {[%emt 0:00:12]} 31. Bxc8 {[%emt 0:01:32]} Qxc8 {[%emt 0:00:06] KQR-KQB} 32. g4 {[%emt 0:00:29]} f4 {[%emt 0:01:17]} 33. h3 {[%emt 0:00:19]} fxe3 {[%emt 0:00:41]} 34. Qxe3 {[%emt 0:00:03]} h6 {[%emt 0:00:56]} 35. Qxe4 {[%emt 0:00:03]} Qh8 {[%emt 0:00:39]} 36. e6 {[%emt 0:00:11] Black got outplayed after the opening.  Weighted Error Value: White=0.06 (flawless) /Black=0.78} 1-0

[Event "Asian Amateur-ch Open 2022"]
[Site "Muscat"]
[Date "2022.10.02"]
[Round "3.2"]
[White "Srivatsan Karthikeyan"]
[Black "Owlad, Ehsan"]
[Result "1-0"]
[ECO "C01"]
[WhiteElo "1711"]
[BlackElo "1962"]
[Annotator "TA"]
[PlyCount "85"]
[EventDate "2022.09.29"]
[EventType "swiss"]
[SourceTitle "playchess.com"]
[Source "ChessBase"]
[SourceQuality "1"]
[TimeControl "5400+30"]

{[%evp 10,85,2,-9,16,17,39,35,27,27,46,37,35,29,117,18,21,8,60,46,57,38,56,23,45,39,38,7,6,0,31,28,22,21,31,29,28,0,0,-235,-7,-10,-20,0,231,220,212,222,177,150,173,161,138,130,145,147,144,150,267,269,266,261,251,254,359,360,424,224,1153,605,5197,1915,29992,29993,29993,29994,29994,29995]} 1. e4 {[%emt 0:00:03]} e6 {[%emt 0:00:19]} 2. d4 {[%emt 0:00:10]} d5 {[%emt 0:00:03]} 3. exd5 {[%emt 0:00:08]} exd5 {[%emt 0:00:07]} 4. Bd3 {[%emt 0:00:06]} Nf6 {[%emt 0:00:29]} 5. Ne2 {[%emt 0:00:07]} Bd6 {[%emt 0:00:33]} 6. Bg5 {[%emt 0:00:09]} Bg4 {[%emt 0:05:52] C01: French: Exchange Variation.} 7. f3 {[%emt 0:03:59]} Bd7 {[%emt 0:02:15]} 8. Nbc3 {[%emt 0:00:46][%cal Bb1c3,Bc3d1,Bd1e3][%mdl 32]} c6 {[%emt 0:00:58] White is slightly better.} 9. Qd2 {[%emt 0:05:58] [#]} h6 $146 {[%emt 0:02:32]} ({Predecessor:} 9... O-O 10. O-O-O Be7 11. g4 b5 12. Ng3 b4 13. Na4 Qa5 14. b3 c5 15. dxc5 Bxa4 16. bxa4 Qxc5 {1-0 (52) Kuvsinov,A (2011)-Nineuil,V (1870) Panevezys 2010}) 10. Bh4 {[%emt 0:02:28]} b5 {[%emt 0:08:45]} 11. O-O {[%emt 0:07:15]} Qc7 {[%emt 0:04:05]} (11... Be6 $11 {remains equal.}) 12. Bg3 {[%emt 0:00:47]} (12. Ng3 g5 13. Rae1+ Kf8 14. Bxg5 hxg5 15. Qxg5 Bxg3 16. hxg3 (16. Qxf6 $2 Bxh2+ 17. Kf2 Bg3+ 18. Kg1 Rh5 $19) 16... Qd6 $15) (12. Bxf6 $16 gxf6 13. f4) 12... O-O $11 {[%emt 0:00:49]} 13. Nd1 {[%emt 0:09:01]} Nh5 {[%emt 0:04:23]} (13... a5 $11) 14. Bxd6 $14 {[%emt 0:06:17]} Qxd6 {[%emt 0:00:07]} 15. g4 {[%emt 0:00:02]} (15. Ne3 {feels hotter.} Re8 16. Ng4 Na6 17. c3) 15... Nf6 {[%emt 0:00:44]} 16. Ne3 {[%emt 0:00:06]} Na6 {[%emt 0:03:45]} 17. c3 {[%emt 0:06:37]} Nc7 {[%emt 0:00:17]} 18. Kh1 {[%emt 0:06:21]} Rfe8 {[%emt 0:01:09]} 19. Rae1 {[%emt 0:02:33]} Re7 {[%emt 0:00:58]} 20. Ng3 {[%emt 0:00:42]} Qf4 {[%emt 0:08:08] aiming for ...Rae8.} 21. Qf2 {[%emt 0:00:07]} Rae8 {[%emt 0:01:24][%cal Re7e3]} 22. Ng2 {[%emt 0:00:57]} Qd6 {[%emt 0:07:46]} (22... Nxg4 $2 23. Qc2 (23. Nxf4 $2 Nxf2+ 24. Kg2 Rxe1 $19) 23... Rxe1 24. Nxf4 $18) 23. Ne3 {[%emt 0:08:07] Strongly threatening Ngf5.} g6 {[%emt 0:01:01] Prevents Ngf5.} 24. h3 $2 {[%emt 0:01:51] [#]} (24. Ng2 $11 {and White is okay.}) 24... h5 $2 {[%emt 0:09:50]} (24... Rxe3 $1 $19 {[%mdl 512]} 25. Rxe3 Rxe3 26. Qxe3 Qxg3) 25. Rg1 {[%emt 0:05:48]} hxg4 {[%emt 0:02:03]} 26. fxg4 {[%emt 0:02:36]} Ne4 $2 {[%emt 0:08:12]} (26... a5 $11) 27. Bxe4 $18 {[%emt 0:01:10]} dxe4 {[%emt 0:00:25] [#]} 28. Ngf5 $1 {[%emt 0:02:41][%mdl 512]} Bxf5 {[%emt 0:07:09]} (28... gxf5 $2 29. gxf5+ Kf8 30. f6 $18) 29. Nxf5 {[%emt 0:01:49]} Qf6 {[%emt 0:00:47]} (29... gxf5 $2 30. gxf5+ Kf8 31. f6 $18 (31. Qg2 Rd7 $11)) 30. Nxe7+ {[%emt 0:02:44]} Qxe7 {[%emt 0:00:02]} 31. Re2 {[%emt 0:00:14]} Nd5 {[%emt 0:01:02] [#]} 32. Rge1 $1 {[%emt 0:01:44]} e3 {[%emt 0:01:42]} 33. Qf3 {[%emt 0:00:06]} Qg5 {[%emt 0:04:15] [#]} (33... Kg7 $16 34. b3 Qd6) 34. b3 $1 {[%emt 0:01:42]} Nxc3 {[%emt 0:05:31]} 35. Rxe3 {[%emt 0:00:13]} Rxe3 {[%emt 0:00:23]} 36. Qxe3 {[%emt 0:02:39][%mdl 4096] Endgame KQR-KQN} ({Don't do} 36. Rxe3 Nd5 37. Re2 (37. Re8+ Kg7 $16) 37... Kg7 $18) 36... Qd5+ {[%emt 0:01:09]} (36... Qxe3 {is a better defense.} 37. Rxe3 Nxa2) 37. Kh2 {[%emt 0:00:07]} Nxa2 {[%emt 0:02:08]} 38. Qe5 {[%emt 0:00:05]} (38. Qf2 $142 {Black must now prevent Qf6.} Qd6+ 39. Kg1) 38... Qd7 $2 {[%emt 0:00:25]} (38... Qf3 39. Qe3 Qxe3 40. Rxe3 Kg7) 39. Qc5 {[%emt 0:03:07] And now Re7 would win.} a5 {[%emt 0:03:35]} 40. Re7 {[%emt 0:00:14]} Qd5 {[%emt 0:01:33]} 41. Re8+ {[%emt 0:01:32] White mates.} Kh7 {[%emt 0:02:07]} 42. Qe7 {[%emt 0:00:48]} g5 {[%emt 0:00:56]} 43. Qf6 {[%emt 0:18:04] Weighted Error Value: White=0.35/Black=0.62} 1-0